bitfinex-derivatives/quotes_SOLF0:USTF0_20250301
["timestamp","ask_amount","ask_price","bid_price","bid_amount"]
[1740814241728,5.6024,142.85,142.81,5.6036]
[1740814241933,5.6024,142.85,142.78,10.02]
[1740814242642,0.04962529,142.83,142.8,0.05162731]
[1740814242939,0.04962529,142.83,142.82,5.6035]
[1740814246539,0.04962529,142.83,142.81,5.6038]
[1740814255552,0.04962529,142.83,142.8,0.05162731]
[1740814255852,0.04962529,142.83,142.82,5.6035]
[1740814261152,3.7177,142.89,142.8,10.07162731]
[1740814261455,3.7177,142.89,142.8,10.02]
[1740814261849,3.7177,142.89,142.86,5.6017]
[1740814262258,9.3185,142.89,142.86,5.6017]
[1740814262454,9.3675886,142.89,142.86,5.6467306]
[1740814264160,3.7667886,142.89,142.86,5.6467306]
[1740814265259,0.0490886,142.89,142.88,5.6012]
[1740814265759,0.0490886,142.89,142.86,0.0450306]
[1740814266358,0.0490886,142.89,142.79,3.7618]
[1740814266359,5.6026,142.85,142.81,5.6038]
[1740814266949,5.6029,142.84,142.81,5.6038]
[1740814267149,10.02,142.87,142.8,5.6042]
[1740814267360,0.05230836,142.84,142.81,0.04499975]
[1740814267859,0.05230836,142.84,142.82,5.6035]
[1740814268054,0.05230836,142.84,142.81,0.04499975]
[1740814269262,0.05230836,142.84,142.83,5.6031]
[1740814274659,9.54737318,142.92,142.81,10.06499975]
[1740814274857,9.54737318,142.92,142.81,10.02]
[1740814275865,2.535e-05,142.88,142.85,0.04806281]
[1740814276057,2.535e-05,142.88,142.86,10.02]
[1740814276358,9.853e-05,142.92,142.91,5.6]
[1740814276558,191.0002914,142.96,142.91,10.02]
[1740814277061,10.60638537,142.96,142.95,5.5984]
[1740814277461,10.60638537,142.96,142.94,0.04891913]
[1740814279361,5.5984,142.95,142.94,0.04891913]
[1740814279565,3.5,142.95,142.87,224.1]
[1740814279865,1.8998,142.94,142.87,224.1]
[1740814280056,10.02,142.93,142.87,224.1]
[1740814280259,10.02,142.93,142.82,200.06716409]
[1740814280564,10.02,142.93,142.82,11.42036409]
[1740814280765,5.64685583,142.89,142.86,0.0468189]
[1740814282363,0.04575583,142.89,142.86,0.0468189]
[1740814282868,10.02,142.88,142.82,9.7106867]
[1740814283167,5.6027,142.85,142.82,9.7106867]
[1740814283560,5.6028,142.84,142.82,9.7106867]
[1740814284063,5.65534095,142.84,142.82,0.05277134]
[1740814284868,0.05254095,142.84,142.82,0.05277134]
[1740814285060,0.05254095,142.84,142.8,224.04]
[1740814285564,0.05254095,142.84,142.78,5.605]
[1740814286465,5.65534095,142.84,142.8,0.04633903]
[1740814289267,5.6035,142.82,142.8,0.04633903]
[1740814289473,10.02,142.83,142.72,234.08]
[1740814289972,5.6042,142.81,142.76,5.6055]
[1740814290475,0.04516715,142.8,142.77,0.05101071]
[1740814290872,0.04516715,142.8,142.77,5.65641071]
[1740814293377,0.04516715,142.8,142.77,0.05101071]
[1740814293579,0.04516715,142.8,142.78,5.605]
[1740814296079,0.04516715,142.8,142.77,0.05101071]
[1740814296280,0.04516715,142.8,142.78,5.6051]
[1740814296573,0.04516715,142.8,142.77,0.05101071]
[1740814296969,0.04516715,142.8,142.78,5.6051]
[1740814297980,0.04516715,142.8,142.77,5.65641071]
[1740814299079,0.04516715,142.8,142.72,224.06]
[1740814299380,2.02376715,142.8,142.65,224.16]
[1740814299578,1.8767,142.79,142.65,224.16]
[1740814299784,5.6071,142.73,142.69,5.6085]
[1740814300380,0.05208817,142.72,142.69,5.6085]
[1740814300577,0.05208817,142.72,142.7,5.6082]
[1740814300771,0.05208817,142.72,142.65,224.16]
[1740814301682,0.05208817,142.72,142.71,5.6079]
[1740814308390,0.05208817,142.72,142.66,0.67992252]
[1740814308696,7.95,142.71,142.66,0.67992252]
[1740814309384,13.5579,142.71,142.68,5.6089]
[1740814309582,7.95,142.71,142.66,0.67992252]
[1740814309787,7.95,142.71,142.65,224.16]
[1740814311084,7.95,142.71,142.69,5.6085]
[1740814311693,7.95,142.71,142.7,5.6082]
[1740814321297,0.05208817,142.72,142.71,5.6079]
[1740814322501,0.05208817,142.72,142.69,5.6086]
[1740814322687,0.05208817,142.72,142.66,90.37655056]
[1740814323595,0.05208817,142.72,142.69,5.6085]
[1740814325104,0.05208817,142.72,142.7,5.608]
[1740814326398,5.6086,142.69,142.66,90.37655056]
[1740814326606,5.6086,142.69,142.59,41.65897683]
[1740814326898,0.05228318,142.69,142.59,51.67897683]
[1740814327103,0.04671303,142.65,142.63,5.6107]
[1740814328202,0.04671303,142.65,142.59,12.9004]
[1740814328403,0.04671303,142.65,142.64,5.6106]
[1740814332799,0.04671303,142.65,142.6,10.02]
[1740814334506,0.04671303,142.65,142.64,5.6106]
[1740814340009,0.04671303,142.65,142.6,10.02]
[1740814340210,0.04671303,142.65,142.62,5.6112]
[1740814341906,0.04671303,142.65,142.58,0.59996767]
[1740814342110,5.6117,142.62,142.55,0.80751381]
[1740814342512,0.05266473,142.6,142.55,0.80751381]
[1740814343311,0.05266473,142.6,142.57,5.6131]
[1740814344615,0.05266473,142.6,142.55,0.80751381]
[1740814346214,0.05266473,142.6,142.58,5.6126]
[1740814347105,0.05266473,142.6,142.55,0.80751381]
[1740814347505,0.05266473,142.6,142.59,5.6126]
[1740814348607,0.05266473,142.6,142.57,5.6131]
[1740814348814,0.05266473,142.6,142.55,0.80751381]
[1740814350220,0.05266473,142.6,142.58,5.6128]
[1740814350407,0.05266473,142.6,142.55,0.80751381]
[1740814351414,0.05266473,142.6,142.59,5.6126]
[1740814351819,0.05266473,142.6,142.55,0.80751381]
[1740814353117,0.05266473,142.6,142.59,5.6126]
[1740814366128,0.05266473,142.6,142.55,0.80751381]
[1740814366529,5.6142,142.55,142.49,38.77857683]
[1740814366822,15.6342,142.55,142.49,38.77857683]
[1740814367024,0.04855777,142.53,142.49,38.77857683]
[1740814367729,3.54855777,142.53,142.49,20.90577683]
[1740814367930,0.04855777,142.53,142.49,20.90577683]
[1740814368121,0.04855777,142.53,142.49,17.92687683]
[1740814368323,5.6158,142.51,142.47,77.51437368]
[1740814368521,10.1,142.5,142.47,77.51437368]
[1740814369022,15.76764881,142.5,142.49,0.24732]
[1740814369230,10.15154881,142.5,142.47,72.37107368]
[1740814370029,10.15154881,142.5,142.47,72.35087368]
[1740814370420,10.1,142.49,142.47,72.35087368]
[1740814370619,5.6169,142.48,142.47,72.35087368]
[1740814371131,15.7166,142.49,142.47,72.35087368]
[1740814371428,10.1,142.49,142.47,72.35087368]
[1740814371624,0.05154881,142.5,142.47,72.35087368]
[1740814372434,5.66774881,142.5,142.47,72.35087368]
[1740814372637,0.05154881,142.5,142.47,72.35087368]
[1740814373634,5.6169,142.48,142.47,63.86937368]
[1740814373832,3.55154881,142.5,142.46,116.27156052]
[1740814374026,5.6173,142.47,142.46,87.43756052]
[1740814374228,3.55154881,142.5,142.31,10.14]
[1740814374435,10.14,142.49,142.31,10.14]
[1740814374730,0.05198855,142.42,142.31,10.14]
[1740814374933,10.16,142.44,142.31,10.14]
[1740814375134,0.05383145,142.38,142.37,5.6212]
[1740814375336,10.16,142.45,142.31,10.14]
[1740814375730,10.16,142.45,142.41,5.6196]
[1740814376436,0.04645478,142.44,142.42,5.66891655]
[1740814376637,10.16,142.45,142.42,5.6193]
[1740814376829,0.04940617,142.44,142.42,5.67166882]
[1740814377026,0.04940617,142.44,142.43,5.6189]
[1740814382450,224.62,142.52,142.42,0.05236882]
[1740814382451,10.16,142.5,142.48,5.6169]
[1740814382851,15.7745,142.55,142.41,10.16]
[1740814383051,15.7745,142.55,142.5,5.6158]
[1740814383551,0.05099148,142.54,142.51,0.05312448]
[1740814384646,0.05099148,142.54,142.51,5.66852448]
[1740814385549,5.66559148,142.54,142.51,0.05312448]
[1740814386549,0.05099148,142.54,142.51,0.05312448]
[1740814387148,5.66589148,142.54,142.51,0.05312448]
[1740814387851,0.05099148,142.54,142.51,0.05312448]
[1740814388355,5.66579148,142.54,142.51,0.05312448]
[1740814388855,5.66579148,142.54,142.5,5.6159]
[1740814389256,5.66579148,142.54,142.46,10.16]
[1740814389557,5.615,142.53,142.46,10.16]
[1740814389951,5.615,142.53,142.49,5.6162]
[1740814389952,0.0526719,142.51,142.49,5.6162]
[1740814391055,0.0526719,142.51,142.5,5.6161]
[1740814391950,0.0526719,142.51,142.49,5.6162]
[1740814392456,0.0526719,142.51,142.49,5.6161]
[1740814394454,0.0526719,142.51,142.48,1.90670928]
[1740814394655,5.6162,142.5,142.48,0.04840928]
[1740814396958,0.0526719,142.51,142.48,5.66530928]
[1740814397147,0.0526719,142.51,142.48,0.04840928]
[1740814397651,0.0526719,142.51,142.49,5.6163]
[1740814398058,0.0526719,142.51,142.48,0.04840928]
[1740814398858,0.0526719,142.51,142.49,5.6164]
[1740814399158,0.0526719,142.51,142.48,0.04840928]
[1740814399357,10.16,142.52,142.48,0.04840928]
[1740814399562,19.69225749,142.55,142.48,1.91240928]
[1740814399755,9.53225749,142.55,142.48,1.91240928]
[1740814399956,9.53225749,142.55,142.52,5.6151]
[1740814400165,9.53225749,142.55,142.48,1.864]
[1740814400661,0.04900794,142.53,142.52,5.6151]
[1740814401258,9.53225749,142.55,142.5,0.05293838]
[1740814401452,37.85175033,142.57,142.5,0.05293838]
[1740814402356,0.0479874,142.55,142.5,0.05293838]
[1740814402561,5.6146,142.54,142.5,5.66893838]
[1740814403662,9.58024489,142.55,142.51,5.6156]
[1740814403857,15.19444489,142.55,142.51,5.6156]
[1740814404256,5.6146,142.54,142.51,5.6156]
[1740814405363,9.58024489,142.55,142.51,5.6156]
[1740814405564,15.19454489,142.55,142.51,5.6156]
[1740814405753,15.19454489,142.55,142.52,5.6153]
[1740814405956,9.58024489,142.55,142.52,5.6153]
[1740814406153,0.0479874,142.55,142.5,0.05293838]
[1740814406358,0.0479874,142.55,142.53,5.6146]
[1740814407555,37.85175033,142.56,142.5,0.05293838]
[1740814408155,47.99175033,142.59,142.51,5.6156]
[1740814408861,5.6145,142.55,142.54,0.04950342]
[1740814410466,0.05083765,142.56,142.54,0.04950342]
[1740814411470,0.05083765,142.56,142.54,5.66370342]
[1740814413073,18.72718238,142.58,142.54,0.04950342]
[1740814413979,18.72718238,142.58,142.56,5.6135]
[1740814414169,12.76938238,142.58,142.55,3.8185]
[1740814414368,12.82274318,142.58,142.55,3.8185]
[1740814414570,12.82274318,142.58,142.57,5.6134]
[1740814414867,0.0533608,142.58,142.57,5.6134]
[1740814415066,37.85175033,142.6,142.55,3.8185]
[1740814415266,37.85175033,142.6,142.59,5.6126]
[1740814416576,17.22115033,142.6,142.59,5.6126]
[1740814416764,5.033e-05,142.6,142.59,5.6126]
[1740814417472,73.37518794,142.61,142.6,5.6122]
[1740814417668,0.04586231,142.61,142.6,5.6122]
[1740814417872,6.231e-05,142.61,142.6,5.6122]
[1740814418775,6.231e-05,142.61,142.6,9.1122]
[1740814423786,6.231e-05,142.61,142.6,5.6122]
[1740814424291,6.231e-05,142.65,142.64,5.6106]
[1740814424480,6.231e-05,142.65,142.64,15.7706]
[1740814424786,6.231e-05,142.65,142.6,10.16]
[1740814425180,6.231e-05,142.65,142.59,10.18]
[1740814425383,0.0531372,142.64,142.61,0.0467443]
[1740814426285,5.6641372,142.64,142.61,0.0467443]
[1740814427693,5.6114,142.62,142.61,0.0467443]
[1740814428081,3.9569372,142.64,142.56,224.58]
[1740814428388,5.6118,142.61,142.56,224.58]
[1740814428789,3.9038,142.64,142.56,224.58]
[1740814429393,0.04827323,142.61,142.59,0.04913288]
[1740814429590,5.6125,142.6,142.54,5.6144]
[1740814429883,10.22827323,142.61,142.52,10.18]
[1740814429884,10.18,142.61,142.52,10.18]
[1740814430290,10.18,142.61,142.55,5.6141]
[1740814430291,5.6122,142.6,142.55,5.6141]
[1740814430593,10.18,142.61,142.52,10.18]
[1740814430789,0.05015794,142.59,142.56,0.04619731]
[1740814431791,0.05015794,142.59,142.57,5.6133]
[1740814432191,0.05015794,142.59,142.56,0.04619731]
[1740814432800,0.05015794,142.59,142.56,5.65969731]
[1740814433400,0.05015794,142.59,142.57,5.6133]
[1740814434702,0.05015794,142.59,142.58,5.613]
[1740814435002,0.05015794,142.59,142.56,0.04619731]
[1740814435201,0.05015794,142.59,142.56,5.65959731]
[1740814435397,0.05015794,142.59,142.56,0.04619731]
[1740814436903,0.05015794,142.59,142.58,5.613]
[1740814437602,0.05015794,142.59,142.56,5.65979731]
[1740814437803,0.05015794,142.59,142.56,0.04619731]
[1740814438305,0.05015794,142.59,142.57,5.6131]
[1740814438504,0.05015794,142.59,142.56,0.04619731]
[1740814438900,0.05015794,142.59,142.58,5.613]
[1740814440702,5.794e-05,142.59,142.58,5.613]
[1740814440909,6.231e-05,142.65,142.64,5.6106]
[1740814443002,3.4e-06,142.66,142.65,5.6102]
[1740814459011,3.4e-06,142.66,142.65,9.1102]
[1740814473928,3.4e-06,142.66,142.65,10.51223294]
[1740814475027,3.4e-06,142.66,142.65,7.01223294]
[1740814475219,3.4e-06,142.66,142.65,231.27223294]
[1740814475425,3.4e-06,142.66,142.65,229.8702]
[1740814487242,3.4e-06,142.66,142.65,209.0312]
[1740814488741,3.4e-06,142.66,142.65,214.6414]
[1740814500052,3.4e-06,142.66,142.65,206.0544]
[1740814500352,3.4e-06,142.66,142.65,194.2405]
[1740814502159,3.4e-06,142.66,142.65,199.8507]
[1740814508768,3.4e-06,142.66,142.65,5.6102]
[1740814510562,3.4e-06,142.66,142.65,15.6302]
[1740814522280,3.4e-06,142.66,142.65,19.1302]
[1740814523080,3.4e-06,142.66,142.65,15.6302]
[1740814537483,3.4e-06,142.66,142.65,5.6102]
[1740814537686,3.4e-06,142.66,142.65,15.6302]
[1740814540593,3.4e-06,142.66,142.65,5.6102]
[1740814548198,3.4e-06,142.66,142.64,5.6105]
[1740814548599,3.4e-06,142.66,142.63,0.04934639]
[1740814548903,3.4e-06,142.66,142.65,5.6102]
[1740814560716,3.4e-06,142.66,142.65,15.6302]
[1740814561817,3.4e-06,142.66,142.65,5.6102]
[1740814562024,3.4e-06,142.66,142.64,5.6105]
[1740814562722,3.4e-06,142.66,142.65,5.6102]
[1740814566223,38.05862877,142.79,142.78,5.6051]
[1740814566427,38.05862877,142.79,142.78,15.6251]
[1740814568317,29.64852877,142.79,142.78,15.6251]
[1740814568518,75.83644496,142.8,142.78,15.6251]
[1740814568519,0.05246766,142.8,142.79,5.6047]
[1740814568716,6.766e-05,142.8,142.79,5.6047]
[1740814569426,6.766e-05,142.8,142.79,197.7515]
[1740814569927,21.11379643,142.86,142.79,192.1468]
[1740814570126,21.11379643,142.86,142.85,5.6024]
[1740814570322,21.11379643,142.86,142.85,15.6224]
[1740814570926,5.5989,142.94,142.86,5.602]
[1740814571125,0.0475343,142.87,142.86,5.602]
[1740814571318,5.5989,142.94,142.86,5.602]
[1740814571519,0.04922874,142.88,142.86,5.602]
[1740814571920,5.5989,142.94,142.86,5.64893901]
[1740814572319,0.04434287,142.91,142.86,0.04693901]
[1740814572522,0.04434287,142.91,142.87,5.6015]
[1740814574324,0.04434287,142.91,142.86,5.64883901]
[1740814575019,0.04434287,142.91,142.86,0.04693901]
[1740814575422,5.6015,142.88,142.86,0.04693901]
[1740814575726,3.54434287,142.91,142.86,0.04693901]
[1740814575923,5.6016,142.87,142.86,0.04693901]
[1740814576325,9.1016,142.87,142.86,0.04693901]
[1740814576524,5.6036,142.82,142.79,10.02]
[1740814576722,5.6036,142.82,142.76,234.32]
[1740814577425,5.6036,142.82,142.78,5.605]
[1740814577623,0.05074868,142.8,142.78,0.04521396]
[1740814577826,5.6029,142.84,142.76,234.32]
[1740814578022,0.0492996,142.79,142.78,5.6051]
[1740814578222,5.6029,142.84,142.78,5.6051]
[1740814578421,0.05222884,142.8,142.78,5.6051]
[1740814579030,0.05222884,142.8,142.77,15.67565043]
[1740814579331,0.05222884,142.8,142.77,10.07025043]
[1740814579721,0.05222884,142.8,142.77,0.05025043]
[1740814580628,0.05222884,142.8,142.77,5.65565043]
[1740814581230,0.05222884,142.8,142.78,5.6051]
[1740814582231,0.05222884,142.8,142.77,0.05025043]
[1740814583131,0.05222884,142.8,142.77,5.65565043]
[1740814584427,0.05222884,142.8,142.77,0.05025043]
[1740814584726,0.05222884,142.8,142.78,5.605]
[1740814585432,0.05222884,142.8,142.77,0.05025043]
[1740814585629,0.05222884,142.8,142.77,5.65565043]
[1740814586034,0.05222884,142.8,142.78,5.6048]
[1740814587036,0.05222884,142.8,142.77,5.65565043]
[1740814589429,0.05222884,142.8,142.77,0.05025043]
[1740814589632,3.55222884,142.8,142.77,0.05025043]
[1740814590036,5.6051,142.78,142.77,0.05025043]
[1740814590533,9.1051,142.78,142.77,0.05025043]
[1740814592935,9.1051,142.78,142.77,5.043e-05]
[1740814593133,5.607,142.74,142.69,224.16]
[1740814593330,3.5,142.78,142.69,224.16]
[1740814593331,10.02,142.77,142.69,224.16]
[1740814593637,5.6073,142.73,142.69,224.16]
[1740814594227,0.04756147,142.72,142.7,0.05222568]
[1740814596143,0.04756147,142.72,142.7,5.66042568]
[1740814596541,0.04756147,142.72,142.7,0.05222568]
[1740814597441,5.6079,142.71,142.7,0.05222568]
[1740814598343,9.1079,142.71,142.7,0.05222568]
[1740814598642,0.04756147,142.72,142.7,0.05222568]
[1740814599044,0.04756147,142.72,142.7,5.66022568]
[1740814600347,0.04756147,142.72,142.71,5.6079]
[1740814600947,0.04756147,142.72,142.7,0.05222568]
[1740814601951,5.6079,142.71,142.7,0.05222568]
[1740814604155,5.65516147,142.72,142.7,0.05222568]
[1740814609055,5.6079,142.71,142.7,0.05222568]
[1740814610151,19.1279,142.71,142.7,0.05222568]
[1740814613661,19.1279,142.71,142.7,2.568e-05]
[1740814613854,5.6099,142.66,142.62,229.8313]
[1740814614358,5.6099,142.66,142.62,5.6113]
[1740814614954,0.04708093,142.65,142.63,0.04687228]
[1740814615865,0.04708093,142.65,142.64,5.6106]
[1740814619957,0.04708093,142.65,142.63,5.65767228]
[1740814620158,0.04708093,142.65,142.63,0.04687228]
[1740814620461,10.06708093,142.65,142.63,0.04687228]
[1740814620664,5.6106,142.64,142.63,0.04687228]
[1740814621056,9.1106,142.64,142.63,0.04687228]
[1740814621457,9.1106,142.64,142.63,7.228e-05]
[1740814622356,5.65738093,142.65,142.63,7.228e-05]
[1740814622555,0.04708093,142.65,142.63,7.228e-05]
[1740814624361,10.02,142.71,142.65,5.6099]
[1740814624664,10.02,142.71,142.64,1.9231]
[1740814624866,5.6086,142.7,142.66,5.6097]
[1740814625071,10.02,142.71,142.64,1.9231]
[1740814625371,10.02,142.71,142.65,1.8979]
[1740814625572,0.05117987,142.69,142.67,5.6091]
[1740814628682,15.6274,142.73,142.66,0.04665495]
[1740814629177,15.6274,142.73,142.65,1.8979]
[1740814629382,15.6274,142.73,142.69,5.6084]
[1740814629776,0.04681431,142.72,142.7,0.04434427]
[1740814631876,5.6079,142.71,142.7,0.04434427]
[1740814632378,5.6079,142.71,142.7,4.427e-05]
[1740814633276,0.04681431,142.72,142.7,4.427e-05]
[1740814633874,5.6079,142.71,142.7,4.427e-05]
[1740814634472,0.04681431,142.72,142.7,4.427e-05]
[1740814636883,5.6079,142.71,142.7,4.427e-05]
[1740814641587,9.1079,142.71,142.7,4.427e-05]
[1740814641887,10.35515907,142.71,142.7,4.427e-05]
[1740814642279,9.1079,142.71,142.7,4.427e-05]
[1740814642774,10.35527612,142.71,142.7,4.427e-05]
[1740814643088,5.6079,142.71,142.7,4.427e-05]
[1740814643283,9.1079,142.71,142.7,4.427e-05]
[1740814644183,15.6279,142.71,142.7,4.427e-05]
[1740814644987,108.63401777,142.71,142.7,4.427e-05]
[1740814647690,103.02611777,142.71,142.7,4.427e-05]
[1740814648492,10.02,142.71,142.7,4.427e-05]
[1740814649391,15.6279,142.71,142.7,4.427e-05]
[1740814653587,5.6079,142.71,142.7,4.427e-05]
[1740814665290,9.1079,142.71,142.7,4.427e-05]
[1740814668095,5.6079,142.71,142.7,4.427e-05]
[1740814669198,98.64067099,142.71,142.7,4.427e-05]
[1740814672097,102.14067099,142.71,142.7,4.427e-05]
[1740814672299,103.38809971,142.71,142.7,4.427e-05]
[1740814672696,115.54334067,142.71,142.7,4.427e-05]
[1740814673803,103.38812786,142.71,142.7,4.427e-05]
[1740814674004,102.14067099,142.71,142.7,4.427e-05]
[1740814674208,103.38810268,142.71,142.7,4.427e-05]
[1740814674406,102.14067099,142.71,142.7,4.427e-05]
[1740814675405,140.95686853,142.71,142.7,4.427e-05]
[1740814676107,137.45686853,142.71,142.7,4.427e-05]
[1740814676506,138.70416611,142.71,142.7,4.427e-05]
[1740814677412,6.85523807,142.71,142.7,4.427e-05]
[1740814677807,5.6079,142.71,142.7,4.427e-05]
[1740814678109,6.85523212,142.71,142.7,4.427e-05]
[1740814678505,5.6079,142.71,142.7,4.427e-05]
[1740814679409,6.85524481,142.71,142.7,4.427e-05]
[1740814680012,101.00912405,142.71,142.7,4.427e-05]
[1740814680403,99.76177924,142.71,142.7,4.427e-05]
[1740814680599,101.00912168,142.71,142.7,4.427e-05]
[1740814681711,104.50912168,142.71,142.7,4.427e-05]
[1740814682212,103.26177924,142.71,142.7,4.427e-05]
[1740814682415,116.65399813,142.71,142.7,4.427e-05]
[1740814682710,121.91656327,142.71,142.7,4.427e-05]
[1740814683108,116.65399813,142.71,142.7,4.427e-05]
[1740814683411,121.91662118,142.71,142.7,4.427e-05]
[1740814683714,106.27154397,142.71,142.7,4.427e-05]
[1740814684306,109.77077499,142.71,142.7,4.427e-05]
[1740814684914,106.27077499,142.71,142.7,4.427e-05]
[1740814685614,99.76177924,142.71,142.7,4.427e-05]
[1740814686015,106.27009997,142.71,142.7,4.427e-05]
[1740814686207,111.02823558,142.71,142.7,4.427e-05]
[1740814686410,5.6102,142.66,142.64,3.6905]
[1740814686616,189.70697774,142.71,142.64,3.6905]
[1740814687515,0.05322624,142.69,142.66,0.05286391]
[1740814687715,5.6094,142.67,142.66,0.05286391]
[1740814688718,2.6381,142.67,142.66,0.05286391]
[1740814689015,0.05322624,142.69,142.66,0.05286391]
[1740814689716,5.6094,142.67,142.66,0.05286391]
[1740814690109,5.6094,142.67,142.66,6.391e-05]
[1740814693215,32.439804,142.67,142.66,6.391e-05]
[1740814694113,26.830404,142.67,142.58,1.9647]
[1740814694314,5.6126,142.59,142.58,1.9647]
[1740814695719,5.65878739,142.6,142.58,1.9647]
[1740814698120,5.6126,142.59,142.58,1.9647]
[1740814700826,0.04648739,142.6,142.58,1.9647]
[1740814701026,2.68758739,142.6,142.58,1.9647]
[1740814701824,5.6126,142.59,142.58,1.9647]
[1740814703230,0.05217755,142.6,142.57,1.87971053]
[1740814703426,5.613,142.58,142.57,1.87971053]
[1740814704029,5.613,142.58,142.57,0.04961053]
[1740814706231,5.613,142.58,142.57,1.053e-05]
[1740814708224,5.6157,142.51,142.5,1.8686]
[1740814711643,5.66635311,142.52,142.5,1.8686]
[1740814711842,0.05085311,142.52,142.5,1.8686]
[1740814713346,5.66635311,142.52,142.5,1.8686]
[1740814713547,5.66635311,142.52,142.5,3.7349]
[1740814713942,0.05085311,142.52,142.5,3.7349]
[1740814714146,48.45139013,142.59,142.51,5.6157]
[1740814714347,10.04,142.59,142.5,3.7349]
[1740814715253,0.05188217,142.56,142.53,0.04604891]
[1740814715743,48.45139013,142.6,142.53,0.04604891]
[1740814716838,10.04,142.6,142.53,0.04604891]
[1740814717043,0.04867476,142.58,142.53,0.04604891]
[1740814717346,0.04867476,142.58,142.56,5.6135]
[1740814717549,5.6125,142.6,142.57,1.8752]
[1740814718745,5.66367658,142.6,142.57,7.53873999]
[1740814718943,0.05117658,142.6,142.57,7.53873999]
[1740814719143,0.05117658,142.6,142.57,1.92543999]
[1740814720048,5.66357658,142.6,142.57,1.92543999]
[1740814720551,5.613,142.58,142.57,0.05023999]
[1740814720849,15.673,142.58,142.57,0.05023999]
[1740814721042,15.673,142.58,142.57,3.999e-05]
[1740814722242,19.173,142.58,142.57,3.999e-05]
[1740814723450,20.9668,142.58,142.57,3.999e-05]
[1740814724248,22.21176947,142.58,142.57,3.999e-05]
[1740814725945,22.2116855,142.58,142.57,3.999e-05]
[1740814727150,43.2316855,142.58,142.57,3.999e-05]
[1740814727350,233.2316855,142.58,142.57,3.999e-05]
[1740814727752,231.9868,142.58,142.57,3.999e-05]
[1740814727951,233.23146708,142.58,142.57,3.999e-05]
[1740814728348,244.75405225,142.58,142.48,1.9461]
[1740814728543,5.6165,142.49,142.48,1.9461]
[1740814729155,5.6164,142.5,142.48,1.9461]
[1740814729452,10.1,142.52,142.48,1.9461]
[1740814729648,0.04711911,142.5,142.48,1.99475983]
[1740814730349,5.66361911,142.5,142.48,1.99475983]
[1740814730657,0.04711911,142.5,142.48,1.99475983]
[1740814731154,5.6165,142.49,142.48,1.99475983]
[1740814732249,5.6165,142.49,142.48,0.04865983]
[1740814732844,5.6165,142.49,142.48,5.983e-05]
[1740814733653,9.1165,142.49,142.48,5.983e-05]
[1740814734154,10.36017279,142.49,142.48,5.983e-05]
[1740814734952,9.1165,142.49,142.48,5.983e-05]
[1740814735155,10.3593998,142.49,142.48,5.983e-05]
[1740814736857,5.6165,142.49,142.48,5.983e-05]
[1740814743768,0.04711911,142.5,142.48,5.983e-05]
[1740814744068,5.66341911,142.5,142.48,5.983e-05]
[1740814747466,0.04711911,142.5,142.48,5.983e-05]
[1740814747668,5.6165,142.49,142.48,5.983e-05]
[1740814758280,0.04711911,142.5,142.48,5.983e-05]
[1740814759073,5.6165,142.49,142.48,5.983e-05]
[1740814759378,0.04711911,142.5,142.48,5.983e-05]
[1740814759578,5.6165,142.49,142.48,5.983e-05]
[1740814768075,6.85814238,142.49,142.48,5.983e-05]
[1740814770780,100.47199553,142.49,142.48,5.983e-05]
[1740814771083,100.47200478,142.49,142.48,5.983e-05]
[1740814771279,93.61385315,142.49,142.39,3.7035]
[1740814771479,10.04,142.48,142.39,3.7035]
[1740814771681,10.04,142.48,142.43,5.6188]
[1740814772281,0.04851386,142.47,142.43,5.6188]
[1740814772484,0.04851386,142.47,142.44,0.04527345]
[1740814774688,15.6569,142.48,142.44,0.04527345]
[1740814774891,51.45087505,142.49,142.44,0.04527345]
[1740814775089,51.45087505,142.49,142.45,5.6178]
[1740814775289,51.45087505,142.49,142.46,3.8183]
[1740814775977,51.49543632,142.49,142.46,3.8183]
[1740814776183,5.66126127,142.49,142.46,3.8183]
[1740814776583,0.04456127,142.49,142.44,0.04527345]
[1740814777986,5.6175,142.47,142.44,0.04527345]
[1740814779191,0.04456127,142.49,142.44,0.04527345]
[1740814779392,5.6177,142.46,142.44,0.04527345]
[1740814784792,5.6174,142.47,142.44,0.04527345]
[1740814786191,5.6181,142.45,142.44,7.345e-05]
[1740814811412,9.3307,142.45,142.44,7.345e-05]
[1740814815932,64.72734451,142.45,142.44,7.345e-05]
[1740814819226,65.96857725,142.45,142.44,7.345e-05]
[1740814819533,69.48857725,142.45,142.44,7.345e-05]
[1740814819719,68.24734451,142.45,142.44,7.345e-05]
[1740814819927,69.4885913,142.45,142.44,7.345e-05]